Cogmind - Beta 10.2 @@@ ROGUE MODE // 2021.10.23 @ 03:11:13 Player: Peace Result: Destroyed by S-43 Plague with Heavy Machine Gun Performance ------------- Evolutions (9) 4500 Regions Visited (11) 2200 Robots Destroyed (9) 45 Value Destroyed (139) 139 Prototype IDs (15) 300 Alien Tech Used (0) 0 Bonus (848) 848 TOTAL SCORE: 8032 Bonus ------- Pacifist 834 Follower Combat Kills 14 Cogmind --------- Core Integrity 0/1600 Matter 300/300 Energy 73/100 System Corruption 0% Temperature Cool (0) Movement Core (50) Location -1/Access Parts ------- > --- POWER (1) -------- (None) > --- PROPULSION (2) --- (None) > --- UTILITY (20) ----- Enhanced Optical Array Armor Integrity Analyzer > --- WEAPON (2) ------- (None) > --- INVENTORY (4) ---- Improved Stasis Canceller Peak State ------------ > --- POWER ------------ Light Particle Reactor > --- PROPULSION ------- Impulse Thruster Array > --- UTILITY ---------- Enhanced Optical Array Enhanced Optical Array Improved Sensor Array Improved Signal Interpreter Improved Terrain Scan Processor Advanced Terrain Scan Processor Experimental Terrain Scan Processor Experimental Melee Analysis Suite Experimental Melee Analysis Suite Armor Integrity Analyzer Advanced ECM Suite Experimental Propulsion Shielding Experimental Propulsion Shielding Experimental Propulsion Shielding Experimental Propulsion Shielding System Shield System Shield Experimental Reclamation Unit > --- WEAPON ----------- Greatsword > --- INVENTORY -------- Improved Ion Engine Field Propulsion Array Stasis Canceller [Rating: 120] Favorites ----------- Power Light Particle Reactor Engine Light Deuterium Engine Power Core Micro Fission Core Reactor Light Particle Reactor Propulsion Improved Cesium-ion Thruster Flight Unit Improved Cesium-ion Thruster Utility Experimental Propulsion Shielding Device Improved Sensor Array Storage Energy Well Processor Enhanced Optical Array Hackware System Shield Protection Experimental Propulsion Shielding Weapon Spear Impact Weapon Heavy Hammer Slashing Weapon Greatsword Piercing Weapon Spear Build | -11 -10 -9 -9 -8 -7 -6 -5 -4 -3 -2 -1 ------- Run | Scr Mat Mat Min Mat Fac Fac Fac Fac Res Res Acc Slots Evolved 18 | . . 2 . 2 2 2 2 2 2 2 2 Power . | . . . . . . . . . . . . Propulsion . | . . . . . . . . . . . . Utility 18 | . . 2 . 2 2 2 2 2 2 2 2 Weapon . | . . . . . . . . . . . . Parts Attached 87 | 1 1 4 2 7 16 6 12 7 11 13 7 Power 12 | 1 . 1 . 1 2 1 1 . 2 2 1 Engine 7 | 1 . 1 . 1 2 1 . . . 1 . Core 1 | . . . . . . . 1 . . . . Reactor 4 | . . . . . . . . . 2 1 1 Propulsion 16 | . . 2 . 2 6 . 2 2 1 . 1 Treads . | . . . . . . . . . . . . Leg . | . . . . . . . . . . . . Wheel . | . . . . . . . . . . . . Hover . | . . . . . . . . . . . . Flight 16 | . . 2 . 2 6 . 2 2 1 . 1 Utility 55 | . 1 1 2 4 6 5 9 4 7 11 5 Device 22 | . 1 . 2 2 3 2 2 . 4 4 2 Storage 2 | . . . . . . 1 . . 1 . . Processor 15 | . . 1 . 2 3 2 3 . . 4 . Hackware 6 | . . . . . . . 2 2 1 . 1 Protection 10 | . . . . . . . 2 2 1 3 2 Artifact . | . . . . . . . . . . . . Weapon 4 | . . . . . 2 . . 1 1 . . Energy Gun . | . . . . . . . . . . . . Energy Cannon . | . . . . . . . . . . . . Ballistic Gun . | . . . . . . . . . . . . Ballistic Cannon . | . . . . . . . . . . . . Launcher . | . . . . . . . . . . . . Special Weapon . | . . . . . . . . . . . . Impact Weapon 2 | . . . . . 1 . . 1 . . . Slashing Weapon 1 | . . . . . . . . . 1 . . Piercing Weapon 1 | . . . . . 1 . . . . . . Special Melee Weapon . | . . . . . . . . . . . . Unidentified Prototypes 13 | . . . 1 2 2 . 2 1 2 3 . Parts Lost 43 | . . . . 2 . 1 4 7 . 15 14 Power 6 | . . . . . . . 1 1 . 3 1 Propulsion 5 | . . . . 2 . . 1 . . . 2 Utility 30 | . . . . . . 1 2 5 . 11 11 Weapon 2 | . . . . . . . . 1 . 1 . Highest Loss Streak 15 | . . . . 1 . 1 3 3 . 15 12 Average Slot Usage (%) 74 | . 14 27 57 60 80 88 92 77 70 75 40 Engine 2 | . . 2 11 7 6 6 1 . . . . Core 1 | . . . . . . . 3 4 . . . Reactor 1 | . . . . . . . . . 3 3 . Flight 8 | . . 5 22 17 14 13 11 6 4 4 3 Device 11 | . 14 11 13 21 18 20 13 4 8 6 2 Storage 1 | . . . . . . 4 5 5 . . . Processor 31 | . . 8 11 13 33 37 42 33 28 34 22 Hackware 4 | . . . . . . . 4 5 8 6 3 Protection 7 | . . . . . . . 1 14 13 15 8 Piercing Weapon 1 | . . . . . . 6 5 1 . . . Naked Turns . | . . . . . . . . . . . . Heaviest Build 27 | 5 5 6 10 12 12 15 17 16 26 27 22 Greatest Support 27 | 3 3 12 12 12 16 16 17 23 27 27 27 Greatest Overweight (x) 1 | 1 1 . . . 1 . . . . . . Average Overweight (x) . | . . . . . . . . . . . . Largest Inventory Capacity 4 | 4 4 4 4 4 4 4 4 4 4 4 4 Average Capacity 4 | 4 4 4 4 4 4 4 4 4 4 4 4 Most Carried 4 | . 3 4 4 4 4 4 4 4 4 4 4 Average Carried 3 | . 2 3 3 3 3 3 3 3 3 3 2 Final Capacity 4 | 4 4 4 4 4 4 4 4 4 4 4 4 Final Carried 4 | . 3 3 4 4 4 3 4 4 4 2 1 Class Distribution -------------------- 32% | Ninja 22% | Mutant 17% | Hacker-Scout 16% | Hacker-Ninja 11% | Scout Dominant Class ---------------- Mutant | -10/Materials Mutant | -9/Materials Mutant | -9/Mines Mutant | -8/Materials Ninja | -7/Factory Ninja | -6/Factory Ninja | -5/Factory Scout | -4/Factory Hacker-Scout | -3/Research Hacker-Ninja | -2/Research Mutant | -1/Access Resources | -11 -10 -9 -9 -8 -7 -6 -5 -4 -3 -2 -1 ----------- Run | Scr Mat Mat Min Mat Fac Fac Fac Fac Res Res Acc Matter Collected 973 | 205 . . 17 . 41 247 100 12 164 187 . Remotely . | . . . . . . . . . . . . Salvage Created 699 | . . . . . 41 114 212 . 81 251 . Parts 14 | . . . . . . 3 4 . 3 4 . Haulers Intercepted 5 | . . . . . . 1 2 . 1 1 . Recyclers Shooed 1 | . . . . . . . . . . 1 . Parts Field Recycled . | . . . . . . . . . . . . Retrieved Matter . | . . . . . . . . . . . . Parts Self-Destructed . | . . . . . . . . . . . . Prevented . | . . . . . . . . . . . . Kills | -11 -10 -9 -9 -8 -7 -6 -5 -4 -3 -2 -1 ------- Run | Scr Mat Mat Min Mat Fac Fac Fac Fac Res Res Acc Combat Hostiles Destroyed . | . . . . . . . . . . . . Classes Destroyed 4 | . . . . . 1 1 . . . 2 . Builder 2 | . . . . . 2 . . . . . . Hauler 5 | . . . . . . 1 2 . 1 1 . Recycler 1 | . . . . . . . . . . 1 . Watcher 1 | . . . . . . . . . . 1 . Best Kill Streak 2 | . . . . . 2 1 1 . 1 1 . Combat Bots Only . | . . . . . . . . . . . . Max Kills in Single Turn 1 | . . . . . 1 1 1 . 1 1 . Gunslinging . | . . . . . . . . . . . . Exploded . | . . . . . . . . . . . . Melee . | . . . . . . . . . . . . Uniques/NPCs Destroyed . | . . . . . . . . . . . . Combat | -11 -10 -9 -9 -8 -7 -6 -5 -4 -3 -2 -1 -------- Run | Scr Mat Mat Min Mat Fac Fac Fac Fac Res Res Acc Damage Taken 7627 | . 33 114 64 195 55 157 246 1155 78 2599 2931 Core 3883 | . 33 89 50 61 22 50 84 540 26 1312 1616 Absorbed by Shields 46 | . . . . . . . . 34 . 12 . Core Remaining (%) 78 | 100 86 . 65 88 96 94 91 53 98 9 . Volleys Fired . | . . . . . . . . . . . . Largest . | . . . . . . . . . . . . Hottest . | . . . . . . . . . . . . Shots Fired . | . . . . . . . . . . . . Gun . | . . . . . . . . . . . . Cannon . | . . . . . . . . . . . . Launcher . | . . . . . . . . . . . . Special . | . . . . . . . . . . . . Kinetic . | . . . . . . . . . . . . Thermal . | . . . . . . . . . . . . Explosive . | . . . . . . . . . . . . Electromagnetic . | . . . . . . . . . . . . Robot Hit Streak . | . . . . . . . . . . . . Robot Miss Streak . | . . . . . . . . . . . . Penetration Max . | . . . . . . . . . . . . Secondary Targets . | . . . . . . . . . . . . Shots Hit Robots 21 | . . . . . 2 3 2 . 5 9 . Core Hits 9 | . . . . . . 1 2 . 1 3 2 Critical Hits 1 | . . . . . . . . . . 1 . Critical Kills 1 | . . . . . . . . . . 1 . Critical Parts Destroyed . | . . . . . . . . . . . . Melee Attacks 67 | . . . . . 10 10 17 3 7 20 . Impact 10 | . . . . . 10 . . . . . . Slashing 27 | . . . . . . . . . 7 20 . Piercing 30 | . . . . . . 10 17 3 . . . Sneak Attacks 10 | . . . . . 2 2 2 . 1 3 . Combat Hostiles . | . . . . . . . . . . . . Follow-up Attacks . | . . . . . . . . . . . . Damage Inflicted 1832 | . . . . . 169 209 232 . 381 832 9 Guns . | . . . . . . . . . . . . Cannons . | . . . . . . . . . . . . Explosions . | . . . . . . . . . . . . Melee 1823 | . . . . . 169 209 232 . 381 832 . Ramming 9 | . . . . . . . . . . . 9 Kinetic . | . . . . . . . . . . . . Thermal . | . . . . . . . . . . . . Explosive . | . . . . . . . . . . . . Electromagnetic . | . . . . . . . . . . . . Impact 169 | . . . . . 169 . . . . . . Slashing 1213 | . . . . . . . . . 381 832 . Piercing 441 | . . . . . . 209 232 . . . . Highest Corruption 5 | . . . . . . . . 5 2 3 . Average Corruption 2 | . . . . . . . . 2 2 2 . Corruption Purged . | . . . . . . . . . . . . Effects 8 | . . . . . . . . 3 4 1 . Message Errors 2 | . . . . . . . . . 1 1 . Energy Discharges 1 | . . . . . . . . 1 . . . Data Loss (minor) 4 | . . . . . . . . 2 2 . . Targeting Errors 1 | . . . . . . . . . 1 . . Overload Shots . | . . . . . . . . . . . . Overflow Damage 354 | . . . . . 89 . . . . 265 . Projectiles . | . . . . . . . . . . . . Explosions . | . . . . . . . . . . . . Melee 354 | . . . . . 89 . . . . 265 . Knockbacks 2 | . . . . . 2 . . . . . . Impact 2 | . . . . . 2 . . . . . . Kinetic . | . . . . . . . . . . . . Secondary . | . . . . . . . . . . . . Self-Inflicted Damage 4 | . . . . . . . . . . . 4 Shots . | . . . . . . . . . . . . Rammed 2 | . . . . . . . . . . . 2 Targets Rammed 2 | . . . . . . . . . . . 2 Kicked . | . . . . . . . . . . . . Crushed . | . . . . . . . . . . . . Highest Temperature 403 | . . . . . 403 . . . . . . Average Temperature 202 | . . . . . 202 . . . . . . Received Heat Transfer 465 | . . . . 90 6 30 27 42 . 126 144 Siege Activations . | . . . . . . . . . . . . Robots Corrupted . | . . . . . . . . . . . . Combat Hostiles . | . . . . . . . . . . . . Parts Fried 5 | . . . . . 5 . . . . . . Impact Corruptions 4 | . . . . . 4 . . . . . . Robots Melted . | . . . . . . . . . . . . Combat Hostiles . | . . . . . . . . . . . . Parts Melted . | . . . . . . . . . . . . Heat Transferred . | . . . . . . . . . . . . Parts Sabotaged . | . . . . . . . . . . . . Parts Stolen . | . . . . . . . . . . . . Parts Stripped . | . . . . . . . . . . . . Power Chain Reactions . | . . . . . . . . . . . . Missiles Intercepted . | . . . . . . . . . . . . Alert | -11 -10 -9 -9 -8 -7 -6 -5 -4 -3 -2 -1 ------- Run | Scr Mat Mat Min Mat Fac Fac Fac Fac Res Res Acc Peak Influence 520 | . 30 27 131 298 292 189 242 506 460 420 520 Initial 265 | . . 12 10 50 130 142 92 105 265 152 240 Average 201 | . 8 13 51 130 178 164 105 206 338 227 344 Maximum Alert Level 2 | . . . . 1 1 . 1 2 2 2 2 Low Security (%) 56 | 100 100 100 100 80 67 100 96 65 . 32 . Level 1 36 | . . . . 19 32 . 3 23 82 64 64 Level 2 7 | . . . . . . . . 10 17 3 35 Level 3 . | . . . . . . . . . . . . Level 4 . | . . . . . . . . . . . . Level 5 . | . . . . . . . . . . . . High Security . | . . . . . . . . . . . . Max Security . | . . . . . . . . . . . . Squads Dispatched 12 | . . . . 3 1 . . 5 2 1 . Investigation 3 | . . . . 1 . . . 1 1 . . Extermination 3 | . . . . . 1 . . 1 1 . . Reinforcement 5 | . . . . 2 . . . 2 . 1 . Assault 1 | . . . . . . . . 1 . . . Garrison . | . . . . . . . . . . . . Intercept . | . . . . . . . . . . . . Construction Impeded . | . . . . . . . . . . . . Haulers Reinforced . | . . . . . . . . . . . . Stealth | -11 -10 -9 -9 -8 -7 -6 -5 -4 -3 -2 -1 --------- Run | Scr Mat Mat Min Mat Fac Fac Fac Fac Res Res Acc Distress Signals 13 | . . 1 . 3 1 . 1 3 2 1 1 Communications Jammed 11 | . . . . 10 1 . . . . . . Distress Signals 10 | . . . . 10 . . . . . . . Times Spotted 221 | . 3 6 9 21 11 7 23 37 8 50 46 Peak Tracking Total 28 | . 3 5 4 14 6 6 9 19 5 24 28 Tactical Retreats 37 | . 1 . 1 3 1 . 6 7 4 7 7 Traps | -11 -10 -9 -9 -8 -7 -6 -5 -4 -3 -2 -1 ------- Run | Scr Mat Mat Min Mat Fac Fac Fac Fac Res Res Acc Traps Triggered 10 | . . . . . 1 2 2 1 3 1 . Indirectly . | . . . . . . . . . . . . Trap Hack Attempts . | . . . . . . . . . . . . Triggered . | . . . . . . . . . . . . Disarmed . | . . . . . . . . . . . . Reprogrammed . | . . . . . . . . . . . . Reused . | . . . . . . . . . . . . Traps Extracted . | . . . . . . . . . . . . Installed . | . . . . . . . . . . . . Triggered . | . . . . . . . . . . . . Machines | -11 -10 -9 -9 -8 -7 -6 -5 -4 -3 -2 -1 ---------- Run | Scr Mat Mat Min Mat Fac Fac Fac Fac Res Res Acc Machines Disabled . | . . . . . . . . . . . . Max in Single Turn . | . . . . . . . . . . . . Garrison Access 1 | . . . . . . . . 1 . . . Machines Sabotaged . | . . . . . . . . . . . . Garrisons Compromised . | . . . . . . . . . . . . Overloaded Fab Kills . | . . . . . . . . . . . . Fab Network Shutdowns . | . . . . . . . . . . . . Hacking | -11 -10 -9 -9 -8 -7 -6 -5 -4 -3 -2 -1 --------- Run | Scr Mat Mat Min Mat Fac Fac Fac Fac Res Res Acc Machines Accessed 29 | . . . 1 3 7 2 9 3 2 1 1 Terminals 23 | . . . . 3 5 2 8 2 1 1 1 Fabricators 3 | . . . . . 2 . . 1 . . . Repair Stations 1 | . . . . . . . 1 . . . . Recycling Units . | . . . . . . . . . . . . Scanalyzers . | . . . . . . . . . . . . Garrison Access 1 | . . . . . . . . . 1 . . Total Hacks 58 | . . . 1 9 13 3 16 9 4 2 1 Successful 15 | . . . 1 4 4 . 5 1 . . . Failed 43 | . . . . 5 9 3 11 8 4 2 1 Catastrophic 15 | . . . . . 3 2 3 2 3 1 1 Database Lockouts . | . . . . . . . . . . . . Manual 41 | . . . . 7 6 3 12 7 3 2 1 Terminals 47 | . . . . 9 9 3 13 7 3 2 1 Fabricators 6 | . . . . . 4 . . 2 . . . Repair Stations 3 | . . . . . . . 3 . . . . Recycling Units . | . . . . . . . . . . . . Scanalyzers . | . . . . . . . . . . . . Garrison Access 1 | . . . . . . . . . 1 . . Terminal Hacks 10 | . . . 1 4 1 . 4 . . . . Record 1 | . . . . . . . 1 . . . . Prototype ID Bank 1 | . . . . 1 . . . . . . . Open Door 1 | . . . 1 . . . . . . . . Level Access Points 3 | . . . . 1 1 . 1 . . . . Alert Level 2 | . . . . 1 . . 1 . . . . Unreport Threat 1 | . . . . . . . 1 . . . . Locate Traps 1 | . . . . 1 . . . . . . . Fabricator Hacks 3 | . . . . . 2 . . 1 . . . Network Status 1 | . . . . . . . . 1 . . . Build 2 | . . . . . 2 . . . . . . Repair Station Hacks 1 | . . . . . . . 1 . . . . Scan Component 1 | . . . . . . . 1 . . . . Recycling Unit Hacks . | . . . . . . . . . . . . Scanalyzer . | . . . . . . . . . . . . Garrison Access Hacks . | . . . . . . . . . . . . Unauthorized Hacks 1 | . . . . . 1 . . . . . . Terminals 1 | . . . . . 1 . . . . . . Assimilate 1 | . . . . . 1 . . . . . . Fabricators . | . . . . . . . . . . . . Repair Stations . | . . . . . . . . . . . . Recycling Units . | . . . . . . . . . . . . Scanalyzers . | . . . . . . . . . . . . Garrison Access . | . . . . . . . . . . . . Data Cores Recovered . | . . . . . . . . . . . . Used . | . . . . . . . . . . . . Hacking Detections 24 | . . . . 2 6 2 8 2 2 1 1 Full Trace Events 2 | . . . . 1 . . . 1 . . . Feedback Events . | . . . . . . . . . . . . Feedback Blocked . | . . . . . . . . . . . . Robot Schematics Acquired . | . . . . . . . . . . . . Robots Built . | . . . . . . . . . . . . Matter . | . . . . . . . . . . . . Time . | . . . . . . . . . . . . Total Robot Build Rating . | . . . . . . . . . . . . Part Schematics Acquired . | . . . . . . . . . . . . Parts Built 3 | . . . . . 3 . . . . . . Matter 358 | . . . . . 358 . . . . . . Time 179 | . . . . . 179 . . . . . . Total Part Build Rating 14 | . . . . . 14 . . . . . . Parts Repaired . | . . . . . . . . . . . . Time . | . . . . . . . . . . . . Parts Recycled . | . . . . . . . . . . . . Recycled Matter . | . . . . . . . . . . . . Retrieved Matter . | . . . . . . . . . . . . Retrieved Components . | . . . . . . . . . . . . Parts Scanalyzed . | . . . . . . . . . . . . Part Schematics Acquired . | . . . . . . . . . . . . Parts Damaged . | . . . . . . . . . . . . Bothacking | -11 -10 -9 -9 -8 -7 -6 -5 -4 -3 -2 -1 ------------ Run | Scr Mat Mat Min Mat Fac Fac Fac Fac Res Res Acc Used RIF Installer . | . . . . . . . . . . . . Robots Hacked . | . . . . . . . . . . . . Non-combat . | . . . . . . . . . . . . Combat . | . . . . . . . . . . . . Robot Hacks Applied . | . . . . . . . . . . . . Relay Couplers Released 2 | . . . . . . . . 2 . . . Machine Destruction 2 | . . . . . . . . 2 . . . Robots Rewired . | . . . . . . . . . . . . Allies Hacked . | . . . . . . . . . . . . Hacks Repelled . | . . . . . . . . . . . . Allies | -11 -10 -9 -9 -8 -7 -6 -5 -4 -3 -2 -1 -------- Run | Scr Mat Mat Min Mat Fac Fac Fac Fac Res Res Acc Total Allies 1 | . . . . . 1 . . . . . . Largest Group 1 | . . . . . 1 . . . . . . Highest-Rated Group 26 | . . . . . 26 . . . . . . Highest-Rated Ally 26 | . . . . . 26 . . . . . . Total Orders 1 | . . . . . . . . . . . 1 EXPLORE 1 | . . . . . . . . . . . 1 Ally Attacks 9 | . . . 9 . . . . . . . . Total Damage 64 | . . . 64 . . . . . . . . Kills 2 | . . . 2 . . . . . . . . Allies Corrupted . | . . . . . . . . . . . . Allies Melted . | . . . . . . . . . . . . Intel | -11 -10 -9 -9 -8 -7 -6 -5 -4 -3 -2 -1 ------- Run | Scr Mat Mat Min Mat Fac Fac Fac Fac Res Res Acc Robot Analysis Total . | . . . . . . . . . . . . Derelict Logs Recovered . | . . . . . . . . . . . . Drone Launches 6 | . . . 3 . . . . . . . 3 Drone Recoveries . | . . . . . . . . . . . . Exploration | -11 -10 -9 -9 -8 -7 -6 -5 -4 -3 -2 -1 ------------- Run | Scr Mat Mat Min Mat Fac Fac Fac Fac Res Res Acc Turns Passed 3051 | 22 52 42 42 166 372 213 617 327 501 455 242 Spaces Moved 5953 | 25 92 76 99 406 770 505 1333 746 757 644 500 Core 175 | 25 92 56 . . . . . . . . 2 Treads . | . . . . . . . . . . . . Legs . | . . . . . . . . . . . . Wheels . | . . . . . . . . . . . . Hover . | . . . . . . . . . . . . Flight 5778 | . . 20 99 406 770 505 1333 746 757 644 498 Fastest Speed 32 | 50 50 37 37 34 32 32 32 34 40 40 40 Average Speed 36 | 86 52 46 37 34 32 32 33 37 40 40 40 Slowest Speed 105 | 100 100 50 37 37 105 32 34 40 40 40 50 Overloaded Moves . | . . . . . . . . . . . . Propulsion Burnouts . | . . . . . . . . . . . . Robots Hopped 104 | . . 1 . 10 18 3 19 14 6 19 14 Cave-ins Triggered . | . . . . . . . . . . . . Exploration Rate (%) 26 | 3 24 9 34 54 29 20 36 28 26 20 32 Regions Visited 11 Branch Regions 1 Pre-discovered Areas . | . . . . . . . . . . . . Known Exits Taken 6 | . . . . 1 1 1 1 1 1 . . Unknown Exits Taken 5 | 1 1 1 1 . . . . . . 1 . Scrap Searched . | . . . . . . . . . . . . Spaces Dug 39 | . . . . . 5 6 15 3 2 8 . Terrain Destroyed 39 | . . . . . 5 6 15 3 2 8 . Melee 39 | . . . . . 5 6 15 3 2 8 . Projectile . | . . . . . . . . . . . . AOE . | . . . . . . . . . . . . Terrain Rammed . | . . . . . . . . . . . . Walls Destroyed . | . . . . . . . . . . . . Machines Disabled . | . . . . . . . . . . . . Actions | -11 -10 -9 -9 -8 -7 -6 -5 -4 -3 -2 -1 --------- Run | Scr Mat Mat Min Mat Fac Fac Fac Fac Res Res Acc Total 6580 | 25 95 79 103 421 852 536 1460 770 934 779 526 Wait 501 | . . . . 13 44 17 112 17 156 114 28 Move 5746 | 24 91 73 98 385 735 498 1294 719 744 610 475 Hop 92 | . . 1 . 10 16 3 19 12 6 14 11 Pick Up 14 | . 2 1 1 1 2 . 1 2 1 1 2 Fast Attach 72 | 1 1 3 2 6 13 5 9 5 10 11 6 Attach 12 | . . 1 . 1 1 1 2 2 1 2 1 Detach 9 | . 1 . 1 . 1 1 3 . 1 1 . Swap 3 | . . . . . 2 . 1 . . . . Drop 37 | . . . 1 5 10 1 2 4 8 5 1 Fire . | . . . . . . . . . . . . Melee 67 | . . . . . 10 10 17 3 7 20 . Ram 2 | . . . . . . . . . . . 2 Kick . | . . . . . . . . . . . . Crush . | . . . . . . . . . . . . Escape Stasis 25 | . . . . . 18 . . 6 . 1 . Rewire . | . . . . . . . . . . . . Trap . | . . . . . . . . . . . . Miscellaneous . | . . . . . . . . . . . . Route ------- -11/Scrapyard -10/Materials -9/Materials -9/Mines -8/Materials (discovered 3 exits: *Fac x3) -7/Factory (discovered 6 exits: *Fac x4 / *Low x2) -6/Factory -5/Factory (discovered 5 exits: *Fac x4 / *Ext) -4/Factory (discovered 2 exits: *Res / *Upp) -3/Research -2/Research -1/Access History --------- Turn | Location | Event 7 | -11/Scrapyard | Discovered new exit (range 16) 23 | -11/Scrapyard | Entered Materials 69 | -10/Materials | Discovered new exit (range 15) 75 | -10/Materials | Entered another Materials area 75 | -9/Materials | Evolved 2 slots: Utility x2 112 | -9/Materials | Discovered new exit (range 16) 117 | -9/Materials | Entered Mines 134 | -9/Mines | Met a Derelict bent on vengeance 142 | -9/Mines | Discovered new exit (range 13) 146 | -9/Mines | Found the Drone Emporium 146 | -9/Mines | Found Prototype Device 146 | -9/Mines | Identified Thief Drone Bay 159 | -9/Mines | Entered Materials 159 | -8/Materials | Evolved 2 slots: Utility x2 312 | -8/Materials | Identified exit to Factory 325 | -8/Materials | Entered Factory 325 | -7/Factory | Evolved 2 slots: Utility x2 379 | -7/Factory | Discovered new exit (range 11) 383 | -7/Factory | Identified exit to Lower Caves 506 | -7/Factory | Fabricated Lrn. Terrain Scanner? 512 | -7/Factory | Fabricated Fission Core? 657 | -7/Factory | Identified exit to Factory 657 | -7/Factory | Discovered exit to Lower Caves (range 16) 668 | -7/Factory | Build established: Ninja 697 | -7/Factory | Entered another Factory area 697 | -6/Factory | Evolved 2 slots: Utility x2 878 | -6/Factory | Discovered new exit (range 22) 910 | -6/Factory | Identified exit to Factory 910 | -6/Factory | Entered another Factory area 910 | -5/Factory | Evolved 2 slots: Utility x2 987 | -5/Factory | Spotted B-75 Beast 1097 | -5/Factory | Found Prototype Processor 1097 | -5/Factory | Identified Exp. Terrain Scan Processor 1238 | -5/Factory | Discovered new exit (range 22) 1246 | -5/Factory | Identified exit to Extension 1367 | -5/Factory | Lost 3 parts (1n2u) 1412 | -5/Factory | Identified exit to Factory 1527 | -5/Factory | Entered another Factory area 1527 | -4/Factory | Evolved 2 slots: Utility x2 1615 | -4/Factory | Spotted B-86 Titan 1733 | -4/Factory | Discovered new exit (range 9) 1736 | -4/Factory | Identified exit to Upper Caves 1838 | -4/Factory | Lost 3 parts (1p2u) 1845 | -4/Factory | Discovered new exit (range 17) 1853 | -4/Factory | Identified exit to Research 1854 | -4/Factory | Entered Research 1854 | -3/Research | Evolved 2 slots: Utility x2 1905 | -3/Research | Spotted B-86 Titan 2311 | -3/Research | Found Prototype Device 2311 | -3/Research | Identified Exp. Thermal Shield 2343 | -3/Research | Discovered new exit (range 12) 2349 | -3/Research | Identified exit to Research 2355 | -3/Research | Entered another Research area 2355 | -2/Research | Evolved 2 slots: Utility x2 2481 | -2/Research | Found Prototype Processor 2481 | -2/Research | Identified Exp. Melee Analysis Suite 2483 | -2/Research | Found Exp. Melee Analysis Suite 2485 | -2/Research | Found Exp. Melee Analysis Suite 2536 | -2/Research | Build established: Hacker-Ninja 2776 | -2/Research | Core integrity fell below 50% 2799 | -2/Research | Discovered new exit (range 19) 2802 | -2/Research | Core integrity fell below 20% 2810 | -2/Research | Entered Access 2810 | -1/Access | Evolved 2 slots: Utility x2 2827 | -1/Access | Lost 15 parts (3p11u1w) 3027 | -1/Access | Build established: Mutant 3028 | -1/Access | Core integrity fell below 50% 3038 | -1/Access | Spotted B-99 Colossus 3038 | -1/Access | Spotted B-99 Colossus 3050 | -1/Access | Core integrity fell below 20% 3052 | -1/Access | Destroyed by S-43 Plague with Heavy Machine Gun Last Messages --------------- 03028_ Imp. Terrain Scan Processor destroyed. 03029_ Imp. System Shield destroyed. 03030_ U-05 Engineer lays Concrete. 03041_ S-43 Plague destroyed. 03042_ Exp. Propulsion Shielding destroyed. 03042_ Slug penetrates Wall. 03042_ Slug penetrates Earth. 03044_ Exp. Terrain Scan Processor destroyed. 03044_ Slug penetrates Wall. 03045_ Penetrated by Slug. 03045_ Exp. Propulsion Shielding destroyed. 03045_ Slug penetrates Reinforced Barrier. 03045_ Slug penetrates Wall. 03047_ Penetrated by Slug. 03047_ Field Propulsion Array destroyed. 03047_ Slug penetrates Reinforced Barrier. 03049_ Penetrated by Slug. 03049_ Slug penetrates Reinforced Barrier. 03050_ B-99 Colossus activates siege mode. 03050_ Slammed into S-43 Plague. Map ----- +----------------------------------------------------+ | ?????????????????????????????????????????????????? | | ?????????????????????????????????????????????????? | | ?????????????????????????????????????????????????? | | ?????????????????????????????????????????????????? | | ?????????????????????????????????????????????????? | | ?????????????????????????????????????????????????? | | ?????????????????????????????????????????????????? | | ?????????????????????????????????????????????????? | | ?????????????????????????????????????????????????? | | ?????????????????????????????????????????????????? | | ?????????????????????????????????????????????????? | | ?????????????????????????????????????????????????? | | ?????????????????????????????????????????????????? | | ?????????????????????????????????????????????????? | | ?????????????????????????????????????????????????? | | ?????????????????????????????????????????????????? | | ??????????????????????????????########???????????? | | ??????????????????????????????# #???????##### | | ??????????????????????????????# #???????# | | ??????????????????????????????# #???????# | | ??????????????????????????????# #???????# | | ??????????????????????????????# #???????# | | ??????????????????????????????# ######### | | ??????????????????????????????# + # | | ?????????????????#""""""""""#?# # # | | ?????????????????# @%s#?# # # | | ?????????????????# BB ss #?# # #[ | | ?????????????????# BB ssBB #?# + [ ####+ | | ?????????????????# BBs#?# # =%= | | ?????????????????# ss #?# ! # | | ?????????????????# s #?######## | | ?????????????????# #????????# | | ?????????????????#### #;########### #### | | ????????????????????# # # # | | ????????????????????# # # # | | ????????????????????# + # # | | ???????????########## g# # # | | ???????????# = # s# # # | | ???????????# # # # # | | ???????????#"" # g# # # ? | | ???????????#"" | # h ############# ###? | | ???????????#"Y # g############# ! ###? | | ???????????#"" = ; [ | | ???????????#"" # =% | | ???????????# #h = | | ???????????# # | | ???????????########## #;###########+###### #### | | ????????????????????# ###????????????????# #??? | | ????????????????????# #??????????????????# #??? | | ????????????????????# #??????????????????# #??? | +----------------------------------------------------+ Best States ------------- Heat Dissipation 52 Energy Generation 25 Energy Capacity 670 Matter Stores 300 Matter Capacity 300 Sight Range 22 Robot Scan Range 16 Terrain Scan Density 1310 ECM Strength 3 Jamming Range 8 Propulsion Shielding 90 Evasion (%) 69 Targeting Accuracy 11 Melee Accuracy 24 Armor Integrity Analysis 33 Stasis Canceling 1 Offensive Hacking 10 Defensive Hacking 20 Item Schematics ----------------- None Robot Schematics ------------------ None Fabricated ------------ Lrn. Terrain Scanner | x1 | -7/Factory | Preloaded Fission Core | x2 | -7/Factory | Preloaded Alien Tech Used ----------------- None Achievements -------------- None Challenges ------------ None Game ------ Seed ArmageddonHellfireInjector Manual? 0 Play Time 01:30:05 Cumulative 71.5 hours Start 2021.10.23 @ 01:44:08 End 2021.10.23 @ 03:11:13 Sessions 1 Manual Loads 0 Difficulty Rogue Special Mode None Game No. 87 Rogue 87 Adventurer 0 Explorer 0 Win Type - Total 0 Types 0/0/0/0/0/0/0/0/0 Lore% 37 Gallery% 54 Achievement% 37 Wizard Run 0 Options --------- ASCII 0 Keyboard 1 Movement Vi Keybinds 0 Fullscreen 1 Font 18/SmallcapsGlow Map View 76x50 Tactical HUD 1 Map Filters NONE Filters NONE Steam 1 RUN: 715ed63c-609e-40c9-bbf0-ee998c60b5c2